fUSD/lending_fUSD_20240819
["ID","MTS","AMOUNT","RATE_DAILY","PERIOD"]
[335260435,1724052638945,-508.62518942,0.00010898,2]
[335260436,1724052638954,-496.22458926,0.00010898,2]
[335260437,1724052638964,-500.0,0.00010898,2]
[335260438,1724052638977,-500.0,0.00010898,2]
[335260439,1724052638997,-151.0,0.00010898,2]
[335260440,1724052639019,-500.0,0.00010898,2]
[335260441,1724052639041,-500.0,0.00010898,2]
[335260442,1724052639063,-500.0,0.00010898,2]
[335260443,1724052639085,-500.0,0.00010898,2]
[335260444,1724052639106,-548.03,0.00010898,2]
[335260445,1724052639128,-500.0,0.00010898,2]
[335260446,1724052639150,-151.0,0.00010898,2]
[335260447,1724052639161,-500.0,0.00010898,2]
[335260448,1724052639170,-500.0,0.00010898,2]
[335260449,1724052639180,-500.0,0.00010898,2]
[335260450,1724052639189,-500.0,0.00010898,2]
[335260451,1724052639199,-500.0,0.00010898,2]
[335260452,1724052639208,-151.0,0.00010898,2]
[335260453,1724052639218,-500.0,0.00010898,2]
[335260454,1724052639228,-355.23836956,0.00010898,2]
[335260455,1724052639238,-500.0,0.00010898,2]
[335260456,1724052639247,-500.0,0.00010898,2]
[335260457,1724052639257,-602.68907125,0.00010898,2]
[335260458,1724052639266,-551.36929486,0.00010898,2]
[335260459,1724052639275,-500.0,0.00010898,2]
[335260460,1724052639286,-511.13381572,0.00010898,2]
[335260461,1724052639295,-538.48,0.00010898,2]
[335260462,1724052639306,-524.66424444,0.00010898,2]
[335260463,1724052639315,-517.88268137,0.00010898,2]
[335260464,1724052639325,-151.0,0.00010898,2]
[335260465,1724052639334,-500.0,0.00010898,2]
[335260466,1724052639344,-518.72250277,0.00010898,2]
[335260467,1724052639354,-519.73110522,0.00010898,2]
[335260468,1724052639363,-521.425925,0.00010898,2]
[335260469,1724052639373,-500.0,0.00010898,2]
[335260470,1724052639382,-500.0,0.00010898,2]
[335260471,1724052639392,-500.0,0.00010898,2]
[335260472,1724052639401,-500.0,0.00010898,2]
[335260473,1724052639411,-516.06477484,0.00010898,2]
[335260474,1724052639421,-1861.23,0.00010898,2]
[335260475,1724052639430,-540.21617421,0.00010898,2]
[335260476,1724052639439,-516.10330441,0.00010898,2]
[335260477,1724052639449,-574.69943321,0.00010898,2]
[335260478,1724052639458,-500.0,0.00010898,2]
[335260479,1724052639468,-500.0,0.00010898,2]
[335260480,1724052639478,-500.0,0.00010898,2]
[335260481,1724052639487,-519.64533519,0.00010898,2]
[335260482,1724052639496,-514.20375234,0.00010898,2]
[335260483,1724052639506,-529.86549891,0.00010898,2]
[335260484,1724052639516,-500.0,0.00010898,2]
[335260485,1724052639528,-500.0,0.00010898,2]
[335260486,1724052639538,-517.58969674,0.00010898,2]
[335260487,1724052639548,-500.0,0.00010898,2]
[335260488,1724052639557,-512.45773599,0.00010898,2]
[335260489,1724052639567,-500.0,0.00010898,2]
[335260490,1724052639576,-510.0333674,0.00010898,2]
[335260491,1724052639585,-500.0,0.00010898,2]
[335260492,1724052639594,-514.54649277,0.00010898,2]
[335260494,1724052639604,-604.82,0.00010898,2]
[335260495,1724052639613,-500.0,0.00010898,2]
[335260497,1724052639622,-512.88984223,0.00010898,2]
[335260498,1724052639632,-500.0,0.00010898,2]
[335260499,1724052639642,-500.0,0.00010898,2]
[335260500,1724052639650,-500.0,0.00010898,2]
[335260501,1724052639660,-217.09047913,0.00010898,2]
[335260502,1724052639669,-531.1467185,0.00010898,2]
[335260503,1724052639679,-500.0,0.00010898,2]
[335260504,1724052639688,-500.0,0.00010898,2]
[335260505,1724052639697,-500.0,0.00010898,2]
[335260506,1724052639706,-512.61608745,0.00010898,2]
[335260507,1724052639715,-516.29387635,0.00010898,2]
[335260508,1724052639725,-525.26023466,0.00010898,2]
[335260509,1724052639735,-514.54996121,0.00010898,2]
[335260510,1724052639745,-500.0,0.00010898,2]
[335260511,1724052639755,-530.17486735,0.00010898,2]
[335260512,1724052639764,-511.60255051,0.00010898,2]
[335260513,1724052639774,-500.0,0.00010898,2]
[335260514,1724052639785,-500.0,0.00010898,2]
[335260515,1724052639794,-500.0,0.00010898,2]
[335260516,1724052639803,-500.0,0.00010898,2]
[335260517,1724052639814,-508.56860858,0.00010898,2]
[335260518,1724052639824,-508.47026344,0.00010898,2]
[335260519,1724052639833,-531.44980716,0.00010898,2]
[335260520,1724052639842,-500.0,0.00010898,2]
[335260521,1724052639852,-1274.94,0.00010898,2]
[335260522,1724052639861,-500.0,0.00010898,2]
[335260524,1724052639870,-502.84843578,0.00010898,2]
[335260525,1724052639879,-500.0,0.00010898,2]
[335260527,1724052639889,-519.2032213,0.00010898,2]
[335260529,1724052639898,-500.0,0.00010898,2]
[335260531,1724052639907,-521.35528205,0.00010898,2]
[335260532,1724052639916,-1338.46,0.00010898,2]
[335260533,1724052639926,-520.64225857,0.00010898,2]
[335260534,1724052639935,-491.9686977,0.00010898,2]
[335260535,1724052639944,-547.33210286,0.00010898,2]
[335260536,1724052639953,-524.21603432,0.00010898,2]
[335260537,1724052639962,-511.39667949,0.00010898,2]
[335260538,1724052639971,-520.08872024,0.00010898,2]
[335260539,1724052639980,-3736.28,0.00010898,2]
[335260540,1724052639989,-500.0,0.00010898,2]
[335260541,1724052639998,-500.0,0.00010898,2]
[335260542,1724052640008,-499.42135991,0.00010898,2]
[335260543,1724052640017,-526.71375044,0.00010898,2]
[335260544,1724052640027,-500.0,0.00010898,2]
[335260545,1724052640036,-151.0,0.00010898,2]
[335260546,1724052640046,-151.0,0.00010898,2]
[335260547,1724052640055,-500.0,0.00010898,2]
[335260548,1724052640064,-500.0,0.00010898,2]
[335260549,1724052640073,-514.23172532,0.00010898,2]
[335260550,1724052640083,-500.0,0.00010898,2]
[335260551,1724052640092,-1137.71,0.00010898,2]
[335260552,1724052640101,-500.0,0.00010898,2]
[335260553,1724052640110,-500.0,0.00010898,2]
[335260554,1724052640119,-544.47705192,0.00010898,2]
[335260555,1724052640128,-500.0,0.00010898,2]
[335260556,1724052640138,-568.18914193,0.00010898,2]
[335260557,1724052640147,-203.074497,0.00010898,2]
[335260558,1724052640157,-203.074497,0.00010898,2]
[335260563,1724052640324,-203.074497,0.00010898,2]
[335260564,1724052640334,-203.074497,0.00010898,2]
[335260565,1724052640343,-511.80927605,0.00010898,2]
[335260566,1724052640353,-500.0,0.00010898,2]
[335260567,1724052640363,-500.0,0.00010898,2]
[335260568,1724052640372,-520.76879746,0.00010898,2]
[335260569,1724052640381,-500.0,0.00010898,2]
[335260570,1724052640390,-500.0,0.00010898,2]
[335260571,1724052640400,-500.0,0.00010898,2]
[335260572,1724052640409,-510.56002542,0.00010898,2]
[335260573,1724052640418,-500.0,0.00010898,2]
[335260574,1724052640427,-500.0,0.00010898,2]
[335260575,1724052640437,-500.0,0.00010898,2]
[335260576,1724052640446,-1336.82,0.00010898,2]
[335260577,1724052640458,-500.0,0.00010898,2]
[335260578,1724052640467,-328.034658,0.00010898,2]
[335260579,1724052640477,-500.0,0.00010898,2]
[335260580,1724052640487,-500.0,0.00010898,2]
[335260581,1724052640495,-509.66804077,0.00010898,2]
[335260582,1724052640504,-328.034658,0.00010898,2]
[335260583,1724052640514,-500.0,0.00010898,2]
[335260584,1724052640523,-500.0,0.00010898,2]
[335260585,1724052640534,-328.034658,0.00010898,2]
[335260586,1724052640544,-328.034658,0.00010898,2]
[335260587,1724052640553,-500.0,0.00010898,2]
[335260588,1724052640562,-2082.006965,0.00010898,2]
[335260589,1724052640572,-500.0,0.00010898,2]
[335260590,1724052640581,-2082.006965,0.00010898,2]
[335260591,1724052640590,-500.0,0.00010898,2]
[335260592,1724052640599,-2082.006965,0.00010898,2]
[335260593,1724052640608,-2082.006965,0.00010898,2]
[335260594,1724052640618,-1013.67,0.00010898,2]
[335260595,1724052640627,-500.0,0.00010898,2]
[335260596,1724052640638,-500.0,0.00010898,2]
[335260597,1724052640647,-811.19,0.00010898,2]
[335260598,1724052640656,-500.0,0.00010898,2]
[335260599,1724052640665,-320.13799977,0.00010898,2]
[335260600,1724052640674,-500.0,0.00010898,2]
[335260601,1724052640683,-500.0,0.00010898,2]
[335260602,1724052640693,-3186.4,0.00010898,2]
[335260603,1724052640704,-500.0,0.00010898,2]
[335260604,1724052640714,-536.37949931,0.00010898,2]
[335260605,1724052640724,-500.0,0.00010898,2]
[335260606,1724052640737,-517.21463414,0.00010898,2]
[335260607,1724052640747,-500.0,0.00010898,2]
[335260608,1724052640756,-500.0,0.00010898,2]
[335260609,1724052640765,-500.0,0.00010898,2]
[335260610,1724052640774,-500.0,0.00010898,2]
[335260611,1724052640785,-500.0,0.00010898,2]
[335260612,1724052640794,-631.01308385,0.00010898,2]
[335260613,1724052640804,-500.0,0.00010898,2]
[335260614,1724052640813,-2176.08,0.00010898,2]
[335260615,1724052640822,-500.0,0.00010898,2]
[335260616,1724052640832,-500.0,0.00010898,2]
[335260617,1724052640841,-512.30461649,0.00010898,2]
[335260618,1724052640850,-500.0,0.00010898,2]
[335260619,1724052640860,-500.0,0.00010898,2]
[335260620,1724052640870,-406.96948923,0.00010898,2]
[335260621,1724052640879,-1390.71,0.00010898,2]
[335260622,1724052640888,-500.0,0.00010898,2]
[335260623,1724052640897,-500.0,0.00010898,2]
[335260624,1724052640906,-500.0,0.00010898,2]
[335260625,1724052640915,-500.0,0.00010898,2]
[335260626,1724052640924,-15907.06,0.00010898,2]
[335260627,1724052640933,-500.0,0.00010898,2]
[335260628,1724052640942,-500.0,0.00010898,2]
[335260629,1724052640951,-500.0,0.00010898,2]
[335260630,1724052640962,-1506.72,0.00010898,2]
[335260631,1724052640971,-263.81081925,0.00010898,2]
[335260632,1724052640980,-500.0,0.00010898,2]
[335260633,1724052640989,-500.0,0.00010898,2]
[335260634,1724052640999,-500.0,0.00010898,2]
[335260635,1724052641007,-528.99064007,0.00010898,2]
[335260636,1724052641019,-500.0,0.00010898,2]
[335260637,1724052641031,-500.0,0.00010898,2]
[335260638,1724052641040,-500.0,0.00010898,2]
[335260639,1724052641052,-500.0,0.00010898,2]
[335260640,1724052641062,-601.83945373,0.00010898,2]
[335260641,1724052641071,-500.0,0.00010898,2]
[335260642,1724052641080,-500.0,0.00010898,2]
[335260643,1724052641090,-500.0,0.00010898,2]
[335260644,1724052641101,-166.90964722,0.00010898,2]
[335260645,1724052641112,-500.0,0.00010898,2]
[335260646,1724052641122,-500.0,0.00010898,2]
[335260647,1724052641132,-151.0,0.00010898,2]
[335260648,1724052641142,-500.0,0.00010898,2]
[335260649,1724052641151,-151.0,0.00010898,2]
[335260650,1724052641161,-516.17322545,0.00010898,2]
[335260651,1724052641170,-522.61892887,0.00010898,2]
[335260652,1724052641179,-513.08099154,0.00010898,2]
[335260653,1724052641189,-528.56579106,0.00010898,2]
[335260654,1724052641200,-500.0,0.00010898,2]
[335260655,1724052641209,-500.0,0.00010898,2]
[335260656,1724052641219,-506.99356833,0.00010898,2]
[335260657,1724052641229,-530.35163137,0.00010898,2]
[335260658,1724052641240,-500.85698947,0.00010898,2]
[335260659,1724052641251,-500.0,0.00010898,2]
[335260660,1724052641261,-500.0,0.00010898,2]
[335260661,1724052641270,-500.83230449,0.00010898,2]
[335260662,1724052641280,-500.0,0.00010898,2]
[335260663,1724052641290,-746.95,0.00010898,2]
[335260664,1724052641299,-520.74648867,0.00010898,2]
[335260665,1724052641308,-500.0,0.00010898,2]
[335260666,1724052641318,-516.30429898,0.00010898,2]
[335260667,1724052641328,-500.0,0.00010898,2]
[335260668,1724052641339,-500.0,0.00010898,2]
[335260669,1724052641349,-204.631171,0.00010898,2]
[335260670,1724052641359,-507.26000441,0.00010898,2]
[335260671,1724052641369,-153.109301,0.00010898,2]
[335260672,1724052641378,-500.0,0.00010898,2]
[335260673,1724052641389,-177.67702851,0.00010899,2]
[335260674,1724052641398,-500.0,0.00010899,2]
[335260675,1724052641409,-500.0,0.00010899,2]
[335260676,1724052641418,-500.0,0.00010899,2]
[335260677,1724052641427,-500.0,0.00010899,2]
[335260678,1724052641436,-631.6,0.00010899,2]
[335260679,1724052641446,-498.88175203,0.00010899,2]
[335260680,1724052641455,-510.39912588,0.00010899,2]
[335260681,1724052641464,-282.101391,0.00010899,2]
[335260682,1724052641473,-503.5321994,0.00010899,2]
[335260683,1724052641482,-595.68027048,0.00010899,2]
[335260684,1724052641491,-504.36897984,0.00010899,2]
[335260685,1724052641501,-500.0,0.00010899,2]
[335260686,1724052641510,-500.0,0.00010899,2]
[335260687,1724052641520,-500.0,0.00010899,2]
[335260688,1724052641531,-500.0,0.00010899,2]
[335260689,1724052641548,-521.32253958,0.00010899,2]
[335260690,1724052641557,-500.0,0.00010899,2]
[335260691,1724052641567,-500.0,0.00010899,2]
[335260692,1724052641576,-509.23857283,0.00010899,2]
[335260693,1724052641585,-500.0,0.00010899,2]
[335260694,1724052641595,-500.0,0.00010899,2]
[335260695,1724052641604,-345.31028187,0.00010899,2]
[335260696,1724052641613,-513.34660725,0.00010899,2]
[335260697,1724052641622,-525.92665506,0.00010899,2]
[335260698,1724052641631,-505.15268709,0.00010899,2]
[335260699,1724052641641,-500.0,0.00010899,2]
[335260700,1724052641651,-500.0,0.00010899,2]
[335260701,1724052641660,-500.0,0.00010899,2]
[335260702,1724052641671,-171.95007648,0.00010899,2]
[335260703,1724052641682,-500.0,0.00010899,2]
[335260704,1724052641692,-500.0,0.00010899,2]
[335260705,1724052641701,-500.0,0.00010899,2]
[335260706,1724052641711,-500.0,0.00010899,2]
[335260707,1724052641721,-500.0,0.00010899,2]
[335260708,1724052641735,-500.0,0.00010899,2]
[335260709,1724052641744,-500.0,0.00010899,2]
[335260710,1724052641754,-500.0,0.00010899,2]
[335260711,1724052641763,-500.0,0.00010899,2]
[335260712,1724052641773,-500.0,0.00010899,2]
[335260713,1724052641786,-315.11008718,0.00010899,2]
[335260714,1724052641795,-500.0,0.00010899,2]
[335260715,1724052641806,-500.0,0.00010899,2]
[335260716,1724052641814,-500.0,0.00010899,2]
[335260717,1724052641824,-500.0,0.00010899,2]
[335260718,1724052641833,-500.0,0.00010899,2]
[335260719,1724052641842,-500.0,0.00010899,2]
[335260720,1724052641852,-500.0,0.00010899,2]
[335260721,1724052641862,-238.40152701,0.00010899,2]
[335260722,1724052641871,-500.0,0.00010899,2]
[335260723,1724052641881,-500.0,0.00010899,2]
[335260724,1724052641891,-500.0,0.00010899,2]
[335260725,1724052641900,-151.0,0.00010899,2]
[335260726,1724052641909,-151.0,0.00010899,2]
[335260727,1724052641919,-151.0,0.00010899,2]
[335260728,1724052641929,-151.0,0.00010899,2]
[335260729,1724052641938,-151.0,0.00010899,2]
[335260730,1724052641948,-180.760655,0.00010899,2]
[335260731,1724052641958,-1279.57,0.00010899,2]
[335260732,1724052641967,-1279.57,0.00010899,2]
[335260733,1724052641976,-1279.57,0.00010899,2]
[335260734,1724052641986,-500.0,0.00010899,2]
[335260735,1724052641995,-500.0,0.00010899,2]
[335260736,1724052642005,-500.0,0.00010899,2]
[335260737,1724052642014,-500.0,0.00010899,2]
[335260738,1724052642023,-500.0,0.00010899,2]
[335260739,1724052642037,-500.0,0.00010899,2]
[335260740,1724052642046,-500.0,0.00010899,2]
[335260741,1724052642056,-459.12,0.00010899,2]
[335260742,1724052642065,-500.0,0.00010899,2]
[335260743,1724052642074,-500.0,0.00010899,2]
[335260744,1724052642083,-500.0,0.00010899,2]
[335260745,1724052642092,-268.354303,0.00010899,2]
[335260746,1724052642101,-500.0,0.00010899,2]
[335260747,1724052642110,-500.0,0.00010899,2]
[335260748,1724052642119,-500.0,0.00010899,2]
[335260749,1724052642128,-500.0,0.00010899,2]
[335260750,1724052642138,-500.0,0.00010899,2]
[335260751,1724052642147,-500.0,0.00010899,2]
[335260752,1724052642156,-500.0,0.00010899,2]
[335260753,1724052642165,-500.0,0.00010899,2]
[335260754,1724052642175,-500.0,0.00010899,2]
[335260755,1724052642184,-500.0,0.00010899,2]
[335260756,1724052642194,-500.0,0.00010899,2]
[335260757,1724052642203,-500.0,0.00010899,2]
[335260758,1724052642212,-548.03,0.00010899,2]
[335260759,1724052642222,-548.03,0.00010899,2]
[335260760,1724052642231,-548.03,0.00010899,2]
[335260761,1724052642241,-500.0,0.00010899,2]
[335260762,1724052642250,-500.0,0.00010899,2]
[335260763,1724052642259,-500.0,0.00010899,2]
[335260764,1724052642268,-151.0,0.00010899,2]
[335260765,1724052642279,-287.420952,0.00010899,2]
[335260766,1724052642289,-500.0,0.00010899,2]
[335260767,1724052642298,-500.0,0.00010899,2]
[335260768,1724052642307,-500.0,0.00010899,2]
[335260769,1724052642316,-500.0,0.00010899,2]
[335260770,1724052642326,-641.30265054,0.00010899,2]
[335260772,1724052642335,-500.0,0.00010899,2]
[335260773,1724052642345,-500.0,0.00010899,2]
[335260774,1724052642354,-500.0,0.00010899,2]
[335260775,1724052642363,-500.0,0.00010899,2]
[335260776,1724052642373,-500.0,0.00010899,2]
[335260777,1724052642383,-500.0,0.00010899,2]
[335260778,1724052642392,-500.0,0.00010899,2]
[335260779,1724052642401,-500.0,0.00010899,2]
[335260780,1724052642411,-500.0,0.00010899,2]
[335260781,1724052642420,-151.0,0.00010899,2]
[335260782,1724052642430,-151.0,0.00010899,2]
[335260783,1724052642440,-151.858055,0.00010899,2]
[335260784,1724052642450,-500.0,0.00010899,2]
[335260785,1724052642459,-500.0,0.00010899,2]
[335260787,1724052642468,-500.0,0.00010899,2]
[335260788,1724052642478,-513.53603305,0.00010899,2]
[335260790,1724052642487,-500.0,0.00010899,2]
[335260792,1724052642496,-513.17399985,0.00010899,2]
[335260794,1724052642506,-516.40189547,0.00010899,2]
[335260795,1724052642515,-538.48,0.00010899,2]
[335260798,1724052642524,-538.48,0.00010899,2]
[335260800,1724052642534,-538.48,0.00010899,2]
[335260804,1724052642544,-257.578376,0.00010899,2]
[335260807,1724052642553,-507.33149175,0.00010899,2]
[335260811,1724052642563,-500.0,0.00010899,2]
[335260813,1724052642572,-516.02000007,0.00010899,2]
[335260815,1724052642581,-600.49100657,0.00010899,2]
[335260817,1724052642591,-508.11743486,0.00010899,2]
[335260819,1724052642601,-500.0,0.00010899,2]
[335260821,1724052642611,-500.0,0.00010899,2]
[335260823,1724052642620,-500.0,0.00010899,2]
[335260825,1724052642629,-1861.23,0.00010899,2]
[335260827,1724052642639,-1861.23,0.00010899,2]
[335260829,1724052642648,-1861.23,0.00010899,2]
[335260831,1724052642657,-547.96886143,0.00010899,2]
[335260832,1724052642667,-500.0,0.00010899,2]
[335260833,1724052642676,-500.0,0.00010899,2]
[335260834,1724052642686,-500.0,0.00010899,2]
[335260835,1724052642696,-500.0,0.00010899,2]
[335260836,1724052642705,-500.0,0.00010899,2]
[335260837,1724052642715,-500.0,0.00010899,2]
[335260838,1724052642724,-500.0,0.00010899,2]
[335260839,1724052642736,-500.0,0.00010899,2]
[335260840,1724052642746,-500.0,0.00010899,2]
[335260841,1724052642755,-500.0,0.00010899,2]
[335260842,1724052642764,-245.15421561,0.00010899,2]
[335260843,1724052642773,-500.0,0.00010899,2]
[335260844,1724052642784,-500.0,0.00010899,2]
[335260845,1724052642794,-500.0,0.00010899,2]
[335260846,1724052642803,-508.29906162,0.00010899,2]
[335260847,1724052642813,-501.68470136,0.00010899,2]
[335260848,1724052642822,-604.82,0.00010899,2]
[335260849,1724052642831,-604.82,0.00010899,2]
[335260850,1724052642840,-604.82,0.00010899,2]
[335260851,1724052642849,-549.68033747,0.00010899,2]
[335260852,1724052642859,-321.39508577,0.00010899,2]
[335260853,1724052642868,-518.70462174,0.00010899,2]
[335260854,1724052642877,-500.0,0.00010899,2]
[335260855,1724052642886,-500.0,0.00010899,2]
[335260856,1724052642895,-500.0,0.00010899,2]
[335260857,1724052642905,-513.88276605,0.00010899,2]
[335260858,1724052642914,-512.80091554,0.00010899,2]
[335260859,1724052642923,-500.0,0.00010899,2]
[335260860,1724052642933,-500.0,0.00010899,2]
[335260861,1724052642941,-500.0,0.00010899,2]
[335260862,1724052642950,-526.97240001,0.00010899,2]
[335260863,1724052642959,-362.30172446,0.00010899,2]
[335260864,1724052642968,-533.44655231,0.00010899,2]
[335260865,1724052642978,-525.56900015,0.00010899,2]
[335260866,1724052642987,-500.0,0.00010899,2]
[335260867,1724052642996,-395.14679873,0.00010899,2]
[335260868,1724052643005,-1274.94,0.00010899,2]
[335260869,1724052643014,-1274.94,0.00010899,2]
[335260870,1724052643023,-1274.94,0.00010899,2]
[335260871,1724052643034,-460.93843342,0.00010899,2]
[335260872,1724052643043,-500.0,0.00010899,2]
[335260873,1724052643052,-500.0,0.00010899,2]
[335260874,1724052643061,-500.0,0.00010899,2]
[335260875,1724052643070,-500.0,0.00010899,2]
[335260876,1724052643079,-1338.46,0.00010899,2]
[335260877,1724052643089,-1338.46,0.00010899,2]
[335260879,1724052643098,-1338.46,0.00010899,2]
[335260881,1724052643107,-3736.28,0.00010899,2]
[335260883,1724052643116,-3736.28,0.00010899,2]
[335260885,1724052643125,-3736.28,0.00010899,2]
[335260886,1724052643134,-535.51899831,0.00010899,2]
[335260888,1724052643143,-316.59330183,0.00010899,2]
[335260890,1724052643153,-508.26264929,0.00010899,2]
[335260891,1724052643162,-177.3746,0.00010899,2]
[335260892,1724052643171,-424.11136834,0.00010899,2]
[335260893,1724052643180,-504.17620777,0.00010899,2]
[335260894,1724052643190,-501.13873672,0.00010899,2]
[335260895,1724052643199,-1137.71,0.00010899,2]
[335260896,1724052643209,-1137.71,0.00010899,2]
[335260897,1724052643219,-1137.71,0.00010899,2]
[335260898,1724052643228,-500.0,0.00010899,2]
[335260899,1724052643238,-500.0,0.00010899,2]
[335260900,1724052643247,-500.0,0.00010899,2]
[335260901,1724052643257,-318.516374,0.00010899,2]
[335260902,1724052643266,-388.54255207,0.00010899,2]
[335260903,1724052643275,-203.074497,0.00010899,2]
[335260904,1724052643286,-203.074497,0.00010899,2]
[335260905,1724052643295,-203.074497,0.00010899,2]
[335260906,1724052643304,-203.074497,0.00010899,2]
[335260907,1724052643314,-203.074497,0.00010899,2]
[335260908,1724052643323,-203.074497,0.00010899,2]
[335260909,1724052643333,-203.074497,0.00010899,2]
[335260910,1724052643343,-203.074497,0.00010899,2]
[335260911,1724052643352,-203.074497,0.00010899,2]
[335260912,1724052643362,-203.074497,0.00010899,2]
[335260913,1724052643371,-375.30742016,0.00010899,2]
[335260914,1724052643380,-500.0,0.00010899,2]
[335260915,1724052643389,-518.97560877,0.00010899,2]
[335260916,1724052643398,-500.0,0.00010899,2]
[335260917,1724052643408,-500.0,0.00010899,2]
[335260918,1724052643417,-500.0,0.00010899,2]
[335260919,1724052643428,-500.0,0.00010899,2]
[335260920,1724052643437,-500.0,0.00010899,2]
[335260921,1724052643447,-500.0,0.00010899,2]
[335260922,1724052643456,-500.0,0.00010899,2]
[335260923,1724052643466,-500.0,0.00010899,2]
[335260924,1724052643475,-500.0,0.00010899,2]
[335260925,1724052643485,-518.60446481,0.00010899,2]
[335260926,1724052643495,-500.0,0.00010899,2]
[335260927,1724052643504,-500.0,0.00010899,2]
[335260928,1724052643514,-500.0,0.00010899,2]
[335260929,1724052643523,-500.0,0.00010899,2]
[335260930,1724052643535,-500.0,0.00010899,2]
[335260931,1724052643545,-500.0,0.00010899,2]
[335260932,1724052643555,-1336.82,0.00010899,2]
[335260933,1724052643564,-1336.82,0.00010899,2]
[335260934,1724052643573,-1336.82,0.00010899,2]
[335260935,1724052643583,-500.0,0.00010899,2]
[335260936,1724052643592,-500.0,0.00010899,2]
[335260937,1724052643602,-500.0,0.00010899,2]
[335260938,1724052643611,-512.09104175,0.00010899,2]
[335260939,1724052643621,-535.38684151,0.00010899,2]
[335260940,1724052643630,-328.034658,0.00010899,2]
[335260941,1724052643640,-328.034658,0.00010899,2]
[335260942,1724052643649,-328.034658,0.00010899,2]
[335260943,1724052643659,-328.034658,0.00010899,2]
[335260944,1724052643667,-328.034658,0.00010899,2]
[335260945,1724052643676,-500.0,0.00010899,2]
[335260946,1724052643685,-536.43520216,0.00010899,2]
[335260947,1724052643695,-500.0,0.00010899,2]
[335260948,1724052643704,-500.0,0.00010899,2]
[335260949,1724052643713,-328.034658,0.00010899,2]
[335260950,1724052643722,-328.034658,0.00010899,2]
[335260951,1724052643735,-500.0,0.00010899,2]
[335260952,1724052643744,-500.0,0.00010899,2]
[335260953,1724052643753,-328.034658,0.00010899,2]
[335260954,1724052643763,-500.0,0.00010899,2]
[335260955,1724052643773,-328.034658,0.00010899,2]
[335260956,1724052643783,-328.034658,0.00010899,2]
[335260957,1724052643792,-510.37484918,0.00010899,2]
[335260958,1724052643802,-2082.006965,0.00010899,2]
[335260959,1724052643812,-500.0,0.00010899,2]
[335260960,1724052643821,-2082.006965,0.00010899,2]
[335260961,1724052643830,-500.0,0.00010899,2]
[335260962,1724052643840,-500.0,0.00010899,2]
[335260963,1724052643849,-2082.006965,0.00010899,2]
[335260964,1724052643859,-2082.006965,0.00010899,2]
[335260965,1724052643868,-2082.006965,0.00010899,2]
[335260966,1724052643877,-2082.006965,0.00010899,2]
[335260967,1724052643886,-2082.006965,0.00010899,2]
[335260968,1724052643895,-2082.006965,0.00010899,2]
[335260969,1724052643905,-1013.67,0.00010899,2]
[335260970,1724052643915,-2082.006965,0.00010899,2]
[335260971,1724052643924,-1013.67,0.00010899,2]
[335260972,1724052643933,-2082.006965,0.00010899,2]
[335260973,1724052643942,-1013.67,0.00010899,2]
[335260974,1724052644087,-500.0,0.00010899,2]
[335260975,1724052644097,-522.77706687,0.00010899,2]
[335260976,1724052644106,-500.0,0.00010899,2]